[Event "Betsys MČR v online bleskovém šachu 2021"]
[Site "Chess.com"]
[Date "2021.04.17"]
[Round "12"]
[White "zaciname"]
[Black "Hroch_Hippo"]
[Result "1-0"]
[WhiteElo "758"]
[BlackElo "1066"]
[TimeControl "180+1"]
[EndTime "10:59:29 PDT"]
[Termination "Uživatel zaciname zvítězil matem"]

1. e4 {[%clk 0:03:00.9]} 1... e5 {[%clk 0:03:00.3]} 2. Nf3 {[%clk 0:03:00.8]}
2... Nc6 {[%clk 0:03:00.9]} 3. Bc4 {[%clk 0:03:01.1]} 3... Nd4 {[%clk 0:03:01]}
4. d3 {[%clk 0:02:59.6]} 4... Nxf3+ {[%clk 0:03:00.4]} 5. Qxf3 {[%clk 0:02:58]}
5... Nf6 {[%clk 0:03:01.3]} 6. Bg5 {[%clk 0:02:56.1]} 6... Be7 {[%clk 0:03:01]}
7. Nc3 {[%clk 0:02:53.7]} 7... O-O {[%clk 0:03:00.5]} 8. Nd5 {[%clk 0:02:44.6]}
8... Nxd5 {[%clk 0:03:00.2]} 9. Bxe7 {[%clk 0:02:40.8]} 9... Nxe7 {[%clk
0:02:58.5]} 10. Bd5 {[%clk 0:02:41]} 10... Nxd5 {[%clk 0:02:58.2]} 11. exd5
{[%clk 0:02:40.4]} 11... c6 {[%clk 0:02:58.5]} 12. dxc6 {[%clk 0:02:38.6]} 12...
bxc6 {[%clk 0:02:58.5]} 13. O-O {[%clk 0:02:38.7]} 13... Bb7 {[%clk 0:02:54.6]}
14. Rae1 {[%clk 0:02:35.2]} 14... Qg5 {[%clk 0:02:53.4]} 15. Re4 {[%clk
0:02:28.4]} 15... c5 {[%clk 0:02:52]} 16. Rg4 {[%clk 0:02:26]} 16... Bxf3 {[%clk
0:02:51.9]} 17. Rxg5 {[%clk 0:02:24.8]} 17... Be2 {[%clk 0:02:51.5]} 18. Re1
{[%clk 0:02:23.2]} 18... Bxd3 {[%clk 0:02:49.2]} 19. Rgxe5 {[%clk 0:02:20.6]}
19... Bxc2 {[%clk 0:02:47.7]} 20. Rxc5 {[%clk 0:02:20.1]} 20... Bg6 {[%clk
0:02:43.7]} 21. Rc7 {[%clk 0:02:14.9]} 21... Rae8 {[%clk 0:02:42.1]} 22. Rxe8
{[%clk 0:02:06.4]} 22... Rxe8 {[%clk 0:02:41.7]} 23. h3 {[%clk 0:02:03.2]} 23...
h6 {[%clk 0:02:32.5]} 24. Rxd7 {[%clk 0:01:58.1]} 24... Re2 {[%clk 0:02:32.2]}
25. Rxa7 {[%clk 0:01:55.4]} 25... Rxb2 {[%clk 0:02:31]} 26. a4 {[%clk
0:01:54.9]} 26... Ra2 {[%clk 0:02:25.5]} 27. a5 {[%clk 0:01:55.1]} 27... Bd3
{[%clk 0:02:25.3]} 28. g3 {[%clk 0:01:49.6]} 28... Kf8 {[%clk 0:02:24.1]} 29.
Kg2 {[%clk 0:01:46.7]} 29... Ke8 {[%clk 0:02:23.3]} 30. Kf3 {[%clk 0:01:45.6]}
30... Kd8 {[%clk 0:02:22.3]} 31. Rxf7 {[%clk 0:01:42.8]} 31... Rxa5 {[%clk
0:02:19.2]} 32. Rxg7 {[%clk 0:01:41.6]} 32... Rf5+ {[%clk 0:02:18.8]} 33. Ke3
{[%clk 0:01:40.8]} 33... Ba6 {[%clk 0:02:16.3]} 34. Rg8+ {[%clk 0:01:35]} 34...
Ke7 {[%clk 0:02:15.8]} 35. Rh8 {[%clk 0:01:30.1]} 35... Bb7 {[%clk 0:02:12.4]}
36. Rxh6 {[%clk 0:01:26.7]} 36... Rf3+ {[%clk 0:02:11.9]} 37. Ke2 {[%clk
0:01:23.3]} 37... Bd5 {[%clk 0:02:00.5]} 38. Rh5 {[%clk 0:01:12.2]} 38... Ke6
{[%clk 0:01:58.3]} 39. Rxd5 {[%clk 0:01:10.3]} 39... Rxg3 {[%clk 0:01:50.4]} 40.
fxg3 {[%clk 0:01:08.8]} 40... Kxd5 {[%clk 0:01:51.3]} 41. Kf3 {[%clk 0:01:08.3]}
41... Ke6 {[%clk 0:01:51.3]} 42. Kg4 {[%clk 0:01:08.3]} 42... Kf6 {[%clk
0:01:51.7]} 43. h4 {[%clk 0:01:06.9]} 43... Kg6 {[%clk 0:01:52.2]} 44. h5+
{[%clk 0:01:03.3]} 44... Kh6 {[%clk 0:01:52.2]} 45. Kh4 {[%clk 0:01:02.2]} 45...
Kh7 {[%clk 0:01:52]} 46. g4 {[%clk 0:01:02.6]} 46... Kh6 {[%clk 0:01:52.4]} 47.
g5+ {[%clk 0:01:02.3]} 47... Kh7 {[%clk 0:01:52.6]} 48. Kg4 {[%clk 0:01:02.4]}
48... Kg7 {[%clk 0:01:52.8]} 49. Kf5 {[%clk 0:01:02.6]} 49... Kh7 {[%clk
0:01:52.7]} 50. Kf6 {[%clk 0:01:01.7]} 50... Kg8 {[%clk 0:01:52.2]} 51. h6
{[%clk 0:01:01]} 51... Kh8 {[%clk 0:01:52]} 52. g6 {[%clk 0:01:01.3]} 52... Kg8
{[%clk 0:01:52.3]} 53. g7 {[%clk 0:00:55.6]} 53... Kh7 {[%clk 0:01:51.3]} 54.
Kf7 {[%clk 0:00:55.2]} 54... Kxh6 {[%clk 0:01:51.3]} 55. g8=Q {[%clk 0:00:55.1]}
55... Kh5 {[%clk 0:01:51.8]} 56. Kf6 {[%clk 0:00:52.8]} 56... Kh4 {[%clk
0:01:52.7]} 57. Kf5 {[%clk 0:00:52.8]} 57... Kh3 {[%clk 0:01:53.6]} 58. Kf4
{[%clk 0:00:52.9]} 58... Kh2 {[%clk 0:01:54.5]} 59. Kf3 {[%clk 0:00:52.4]} 59...
Kh1 {[%clk 0:01:55.4]} 60. Qg2# {[%clk 0:00:51.4]} 1-0

[Event "Betsys MČR v online bleskovém šachu 2021"]
[Site "Chess.com"]
[Date "2021.04.17"]
[Round "12"]
[White "androidddd"]
[Black "starypomalymuz"]
[Result "1-0"]
[WhiteElo "1475"]
[BlackElo "1744"]
[TimeControl "180+1"]
[EndTime "10:59:32 PDT"]
[Termination "Uživatel androidddd zvítězil matem"]

1. e4 {[%clk 0:02:50.6]} 1... e6 {[%clk 0:02:55.8]} 2. d4 {[%clk 0:02:48.6]}
2... a6 {[%clk 0:02:56.2]} 3. Nf3 {[%clk 0:02:46.9]} 3... b5 {[%clk 0:02:55.6]}
4. c4 {[%clk 0:02:46]} 4... bxc4 {[%clk 0:02:54.2]} 5. Bxc4 {[%clk 0:02:45.4]}
5... Bb7 {[%clk 0:02:55.1]} 6. Nc3 {[%clk 0:02:44.3]} 6... Bb4 {[%clk
0:02:44.4]} 7. Qe2 {[%clk 0:02:35.6]} 7... Nf6 {[%clk 0:02:40.4]} 8. O-O {[%clk
0:02:33.8]} 8... Bxc3 {[%clk 0:02:38.3]} 9. bxc3 {[%clk 0:02:32.8]} 9... Nxe4
{[%clk 0:02:37.5]} 10. Bd3 {[%clk 0:02:33.3]} 10... Nxc3 {[%clk 0:02:29.6]} 11.
Qc2 {[%clk 0:02:33.3]} 11... Nd5 {[%clk 0:02:23.7]} 12. Bxh7 {[%clk 0:02:32.1]}
12... Nc6 {[%clk 0:01:47.6]} 13. Ng5 {[%clk 0:02:23]} 13... Nxd4 {[%clk
0:01:38.2]} 14. Qd3 {[%clk 0:02:20.2]} 14... c5 {[%clk 0:01:13.4]} 15. Bg6
{[%clk 0:02:06.8]} 15... Rf8 {[%clk 0:01:00]} 16. Nh7 {[%clk 0:01:30.9]} 16...
Rh8 {[%clk 0:00:49.7]} 17. Ng5 {[%clk 0:01:20.2]} 17... Rf8 {[%clk 0:00:45.8]}
18. Nh7 {[%clk 0:01:19.1]} 18... Ke7 {[%clk 0:00:44.3]} 19. Nxf8 {[%clk
0:01:10.4]} 19... Qxf8 {[%clk 0:00:43.8]} 20. Bg5+ {[%clk 0:01:03]} 20... f6
{[%clk 0:00:42.5]} 21. Be3 {[%clk 0:00:55.1]} 21... Nxe3 {[%clk 0:00:41.7]} 22.
fxe3 {[%clk 0:00:54.7]} 22... Nc6 {[%clk 0:00:35.4]} 23. Rad1 {[%clk 0:00:50.8]}
23... Rd8 {[%clk 0:00:33.1]} 24. Qd6# {[%clk 0:00:46.6]} 1-0

[Event "Betsys MČR v online bleskovém šachu 2021"]
[Site "Chess.com"]
[Date "2021.04.17"]
[Round "12"]
[White "dzerenyss"]
[Black "Tlaskin"]
[Result "1-0"]
[WhiteElo "1129"]
[BlackElo "1312"]
[TimeControl "180+1"]
[EndTime "10:59:38 PDT"]
[Termination "Uživatel dzerenyss zvítězil matem"]

1. e4 {[%clk 0:02:59.6]} 1... c5 {[%clk 0:02:59.1]} 2. c3 {[%clk 0:02:56.1]}
2... Nf6 {[%clk 0:02:50.4]} 3. d4 {[%clk 0:02:51.9]} 3... cxd4 {[%clk
0:02:49.1]} 4. cxd4 {[%clk 0:02:45.3]} 4... e6 {[%clk 0:02:40.5]} 5. Nc3 {[%clk
0:02:41.4]} 5... Bb4 {[%clk 0:02:35.7]} 6. Bd3 {[%clk 0:02:34]} 6... O-O {[%clk
0:02:28.6]} 7. Bg5 {[%clk 0:02:32.4]} 7... h6 {[%clk 0:02:26]} 8. Bh4 {[%clk
0:02:31.4]} 8... Nc6 {[%clk 0:02:13.3]} 9. e5 {[%clk 0:02:27.9]} 9... Qa5 {[%clk
0:01:46]} 10. exf6 {[%clk 0:02:10.7]} 10... Bxc3+ {[%clk 0:01:44.5]} 11. bxc3
{[%clk 0:02:04.6]} 11... Qxc3+ {[%clk 0:01:43.2]} 12. Kf1 {[%clk 0:01:35.7]}
12... Qxd4 {[%clk 0:01:36.3]} 13. Nf3 {[%clk 0:01:14.3]} 13... Qc3 {[%clk
0:01:22.8]} 14. fxg7 {[%clk 0:01:01.3]} 14... Qxg7 {[%clk 0:01:20.6]} 15. Kg1
{[%clk 0:00:40.2]} 15... Nd4 {[%clk 0:01:14]} 16. Nxd4 {[%clk 0:00:36.8]} 16...
e5 {[%clk 0:01:02.3]} 17. Nf5 {[%clk 0:00:31.4]} 17... Qg4 {[%clk 0:00:52.8]}
18. Qxg4+ {[%clk 0:00:30]} 18... Kh8 {[%clk 0:00:44.4]} 19. Ne7 {[%clk
0:00:26.4]} 19... d5 {[%clk 0:00:38.3]} 20. Bf6# {[%clk 0:00:25.3]} 1-0

[Event "Betsys MČR v online bleskovém šachu 2021"]
[Site "Chess.com"]
[Date "2021.04.17"]
[Round "12"]
[White "TarantAnk"]
[Black "matykov"]
[Result "0-1"]
[WhiteElo "1733"]
[BlackElo "2004"]
[TimeControl "180+1"]
[EndTime "10:59:40 PDT"]
[Termination "Uživatel matykov zvítězil matem"]

1. e4 {[%clk 0:03:00.9]} 1... e6 {[%clk 0:02:59.3]} 2. Nf3 {[%clk 0:03:00.6]}
2... d5 {[%clk 0:02:59.8]} 3. Nc3 {[%clk 0:03:01.1]} 3... Nf6 {[%clk 0:02:57.4]}
4. exd5 {[%clk 0:02:57.3]} 4... Nxd5 {[%clk 0:02:57]} 5. Ne2 {[%clk 0:02:56.5]}
5... Be7 {[%clk 0:02:55.2]} 6. Ng3 {[%clk 0:02:56.5]} 6... Bf6 {[%clk 0:02:55]}
7. c3 {[%clk 0:02:56.4]} 7... c5 {[%clk 0:02:54.4]} 8. d4 {[%clk 0:02:54.5]}
8... cxd4 {[%clk 0:02:54.3]} 9. Nxd4 {[%clk 0:02:54.6]} 9... O-O {[%clk
0:02:53.2]} 10. Be2 {[%clk 0:02:53.5]} 10... b6 {[%clk 0:02:40.8]} 11. O-O
{[%clk 0:02:51.6]} 11... Ba6 {[%clk 0:02:39.2]} 12. Ne4 {[%clk 0:02:42.6]} 12...
Bxd4 {[%clk 0:02:10.3]} 13. Bxa6 {[%clk 0:02:34.3]} 13... Bxf2+ {[%clk
0:02:04.1]} 14. Rxf2 {[%clk 0:02:33.9]} 14... Nxa6 {[%clk 0:02:04.3]} 15. Qf3
{[%clk 0:02:30.2]} 15... Ne7 {[%clk 0:01:54.7]} 16. Bg5 {[%clk 0:02:22.9]} 16...
Qc7 {[%clk 0:01:49.4]} 17. Raf1 {[%clk 0:02:10.9]} 17... Ng6 {[%clk 0:01:37.6]}
18. h4 {[%clk 0:02:07.4]} 18... Nc5 {[%clk 0:01:35.1]} 19. h5 {[%clk 0:02:00.3]}
19... Ne5 {[%clk 0:01:33]} 20. Nf6+ {[%clk 0:01:44.9]} 20... gxf6 {[%clk
0:00:53.5]} 21. Qxf6 {[%clk 0:01:43.4]} 21... Ne4 {[%clk 0:00:52.6]} 22. Qf4
{[%clk 0:01:33.1]} 22... Nxf2 {[%clk 0:00:42.1]} 23. Bf6 {[%clk 0:01:22.5]}
23... Nfg4 {[%clk 0:00:37.3]} 24. Kh1 {[%clk 0:01:07.4]} 24... h6 {[%clk
0:00:28.9]} 25. Rf3 {[%clk 0:00:57]} 25... Nxf3 {[%clk 0:00:25.9]} 26. Qxc7
{[%clk 0:00:56.4]} 26... Nf2# {[%clk 0:00:21.3]} 0-1

[Event "Betsys MČR v online bleskovém šachu 2021"]
[Site "Chess.com"]
[Date "2021.04.17"]
[Round "12"]
[White "tomasPardubice"]
[Black "Ladislav1969"]
[Result "0-1"]
[WhiteElo "2111"]
[BlackElo "2321"]
[TimeControl "180+1"]
[EndTime "10:59:41 PDT"]
[Termination "Uživatel Ladislav1969 zvítězil po vzdání soupeře"]

1. Nf3 {[%clk 0:02:58.5]} 1... Nf6 {[%clk 0:03:00.1]} 2. g3 {[%clk 0:02:57.3]}
2... d5 {[%clk 0:03:00.5]} 3. Bg2 {[%clk 0:02:57.4]} 3... g6 {[%clk 0:03:00.8]}
4. O-O {[%clk 0:02:57.3]} 4... Bg7 {[%clk 0:03:01.1]} 5. d4 {[%clk 0:02:57.4]}
5... O-O {[%clk 0:03:00.8]} 6. c4 {[%clk 0:02:57.6]} 6... dxc4 {[%clk
0:03:00.3]} 7. Nc3 {[%clk 0:02:57.7]} 7... Nfd7 {[%clk 0:02:51.4]} 8. e4 {[%clk
0:02:55.4]} 8... c5 {[%clk 0:02:51.4]} 9. d5 {[%clk 0:02:51.4]} 9... Nb6 {[%clk
0:02:37.2]} 10. a4 {[%clk 0:02:47.1]} 10... a5 {[%clk 0:02:25.9]} 11. Be3 {[%clk
0:02:43.3]} 11... Na6 {[%clk 0:02:20.2]} 12. h3 {[%clk 0:02:38.7]} 12... e6
{[%clk 0:02:09.7]} 13. Qd2 {[%clk 0:02:34]} 13... exd5 {[%clk 0:02:07.8]} 14.
Nxd5 {[%clk 0:02:29.2]} 14... Nxd5 {[%clk 0:02:05.3]} 15. exd5 {[%clk
0:02:30.1]} 15... Bf5 {[%clk 0:02:04.8]} 16. Rfc1 {[%clk 0:02:15.7]} 16... Bd3
{[%clk 0:01:56.1]} 17. Ne1 {[%clk 0:02:15.1]} 17... Rc8 {[%clk 0:01:41.4]} 18.
Nxd3 {[%clk 0:02:13.1]} 18... cxd3 {[%clk 0:01:41.6]} 19. Rab1 {[%clk
0:01:31.4]} 19... c4 {[%clk 0:01:28.4]} 20. b3 {[%clk 0:01:31.6]} 20... c3
{[%clk 0:01:18.5]} 21. Qxd3 {[%clk 0:01:30.2]} 21... Nb4 {[%clk 0:01:18.5]} 22.
Qf1 {[%clk 0:01:02.4]} 22... Nxd5 {[%clk 0:01:04.8]} 23. Bxd5 {[%clk 0:00:35.5]}
23... Qxd5 {[%clk 0:01:04.5]} 24. Rc2 {[%clk 0:00:35.2]} 24... Rfd8 {[%clk
0:00:56.5]} 25. b4 {[%clk 0:00:34.7]} 25... Qe4 {[%clk 0:00:50.9]} 26. Qc1
{[%clk 0:00:32.3]} 26... axb4 {[%clk 0:00:50.7]} 0-1

[Event "Betsys MČR v online bleskovém šachu 2021"]
[Site "Chess.com"]
[Date "2021.04.17"]
[Round "12"]
[White "Richarlito"]
[Black "fm_magua"]
[Result "0-1"]
[WhiteElo "2076"]
[BlackElo "2496"]
[TimeControl "180+1"]
[EndTime "10:59:44 PDT"]
[Termination "Uživatel fm_magua zvítězil po vzdání soupeře"]

1. e4 {[%clk 0:03:00.9]} 1... c5 {[%clk 0:02:59.7]} 2. c3 {[%clk 0:03:00.7]}
2... Nf6 {[%clk 0:02:59.3]} 3. e5 {[%clk 0:03:00.2]} 3... Nd5 {[%clk 0:02:59.8]}
4. Bc4 {[%clk 0:03:00.5]} 4... Nb6 {[%clk 0:02:59.8]} 5. Bb3 {[%clk 0:03:01]}
5... c4 {[%clk 0:02:59.6]} 6. Bc2 {[%clk 0:03:01.3]} 6... Nc6 {[%clk 0:02:54.8]}
7. Nf3 {[%clk 0:03:01]} 7... Qc7 {[%clk 0:02:55.2]} 8. Qe2 {[%clk 0:02:57.8]}
8... g5 {[%clk 0:02:55.4]} 9. h3 {[%clk 0:02:53.7]} 9... Bg7 {[%clk 0:02:49.7]}
10. d4 {[%clk 0:02:49.9]} 10... cxd3 {[%clk 0:02:49.3]} 11. Bxd3 {[%clk
0:02:50.3]} 11... Nxe5 {[%clk 0:02:47.7]} 12. Bxg5 {[%clk 0:02:46.7]} 12...
Nxd3+ {[%clk 0:02:40.9]} 13. Qxd3 {[%clk 0:02:44.3]} 13... d6 {[%clk 0:02:41.3]}
14. Nbd2 {[%clk 0:02:43.2]} 14... Be6 {[%clk 0:02:38.7]} 15. Nd4 {[%clk
0:02:39.8]} 15... Bc4 {[%clk 0:02:30.2]} 16. Nxc4 {[%clk 0:02:38.5]} 16... Qxc4
{[%clk 0:02:30.1]} 17. Qxc4 {[%clk 0:02:36.5]} 17... Nxc4 {[%clk 0:02:30]} 18.
b3 {[%clk 0:02:36]} 18... Ne5 {[%clk 0:02:25.1]} 19. Kd2 {[%clk 0:02:33.4]}
19... Rc8 {[%clk 0:02:22.4]} 20. Rhe1 {[%clk 0:02:30.7]} 20... Rg8 {[%clk
0:02:08.7]} 21. Nf5 {[%clk 0:02:26]} 21... Kd7 {[%clk 0:02:05.4]} 22. Nxe7
{[%clk 0:02:24.5]} 22... Nf3+ {[%clk 0:01:56]} 23. gxf3 {[%clk 0:02:21.7]} 23...
Bxc3+ {[%clk 0:01:56.2]} 24. Kd3 {[%clk 0:02:21.9]} 24... Rxg5 {[%clk
0:01:52.4]} 25. Nxc8 {[%clk 0:02:16.7]} 25... Bxa1 {[%clk 0:01:52.3]} 26. Nxd6
{[%clk 0:02:11]} 26... Kxd6 {[%clk 0:01:30]} 27. Rxa1 {[%clk 0:02:10.2]} 27...
Rg2 {[%clk 0:01:30.4]} 28. Ke3 {[%clk 0:02:09.4]} 28... Rh2 {[%clk 0:01:30.4]}
29. Rd1+ {[%clk 0:02:05.5]} 29... Ke6 {[%clk 0:01:29.4]} 30. Kf4 {[%clk
0:01:44.5]} 30... Rxh3 {[%clk 0:01:28.4]} 31. Kg4 {[%clk 0:01:44.6]} 31... Rh6
{[%clk 0:01:27.3]} 32. Re1+ {[%clk 0:01:39.5]} 32... Kd5 {[%clk 0:01:26]} 33.
Re7 {[%clk 0:01:39.1]} 33... Rg6+ {[%clk 0:01:20.6]} 34. Kf5 {[%clk 0:01:29.8]}
34... Rg2 {[%clk 0:01:20.6]} 35. Rxf7 {[%clk 0:01:29.1]} 35... Rxf2 {[%clk
0:01:21]} 36. Rxh7 {[%clk 0:01:25]} 36... Rxf3+ {[%clk 0:01:19.5]} 37. Kg4
{[%clk 0:01:24.9]} 37... Rf2 {[%clk 0:01:19.9]} 38. Rxb7 {[%clk 0:01:19]} 38...
Rxa2 {[%clk 0:01:19.3]} 39. Kf4 {[%clk 0:01:19.3]} 39... Kd4 {[%clk 0:01:19.6]}
40. b4 {[%clk 0:01:11.9]} 40... a6 {[%clk 0:01:15.5]} 41. Rb6 {[%clk 0:01:08.3]}
41... Kc4 {[%clk 0:01:14.8]} 42. Ke4 {[%clk 0:01:07.2]} 42... Re2+ {[%clk
0:01:14.6]} 43. Kf3 {[%clk 0:01:06.8]} 43... Ra2 {[%clk 0:01:14.5]} 44. Ke4
{[%clk 0:01:06.9]} 44... Ra4 {[%clk 0:01:12.8]} 45. Ke3 {[%clk 0:01:03.8]} 45...
Kc3 {[%clk 0:01:13.1]} 46. Ke4 {[%clk 0:01:01.9]} 46... Rxb4+ {[%clk 0:01:13]}
47. Rxb4 {[%clk 0:00:57.4]} 47... Kxb4 {[%clk 0:01:13.9]} 48. Kd3 {[%clk
0:00:57.8]} 48... Kb3 {[%clk 0:01:14.3]} 49. Kd2 {[%clk 0:00:57.7]} 49... Kb2
{[%clk 0:01:14.7]} 50. Kd3 {[%clk 0:00:57.9]} 50... a5 {[%clk 0:01:15.1]} 51.
Kc4 {[%clk 0:00:58.4]} 51... a4 {[%clk 0:01:15.6]} 0-1

[Event "Betsys MČR v online bleskovém šachu 2021"]
[Site "Chess.com"]
[Date "2021.04.17"]
[Round "12"]
[White "Honza_13"]
[Black "OlifantCZ"]
[Result "1-0"]
[WhiteElo "1985"]
[BlackElo "2252"]
[TimeControl "180+1"]
[EndTime "10:59:47 PDT"]
[Termination "Uživatel Honza_13 zvítězil po vzdání soupeře"]

1. Nf3 {[%clk 0:03:00.9]} 1... Nf6 {[%clk 0:02:59.2]} 2. g3 {[%clk 0:02:58]}
2... g6 {[%clk 0:02:59.3]} 3. b3 {[%clk 0:02:56.8]} 3... Bg7 {[%clk 0:02:59.4]}
4. Bb2 {[%clk 0:02:57.3]} 4... O-O {[%clk 0:02:59.4]} 5. Bg2 {[%clk 0:02:57]}
5... b6 {[%clk 0:02:58]} 6. O-O {[%clk 0:02:56.4]} 6... Bb7 {[%clk 0:02:53.8]}
7. d4 {[%clk 0:02:56.5]} 7... c5 {[%clk 0:02:53]} 8. c4 {[%clk 0:02:53.8]} 8...
d6 {[%clk 0:02:49.9]} 9. d5 {[%clk 0:02:51.9]} 9... e6 {[%clk 0:02:43.4]} 10.
Nc3 {[%clk 0:02:10.7]} 10... exd5 {[%clk 0:02:42]} 11. Nxd5 {[%clk 0:02:06.9]}
11... Nxd5 {[%clk 0:02:40.8]} 12. Bxg7 {[%clk 0:02:05.9]} 12... Kxg7 {[%clk
0:02:40.4]} 13. cxd5 {[%clk 0:02:05.6]} 13... Nd7 {[%clk 0:02:37]} 14. Qd3
{[%clk 0:02:02.1]} 14... Qf6 {[%clk 0:02:34.3]} 15. Rfd1 {[%clk 0:01:52.1]}
15... Rfe8 {[%clk 0:02:33.9]} 16. Rac1 {[%clk 0:01:43.3]} 16... Re7 {[%clk
0:02:31.7]} 17. e3 {[%clk 0:01:37.8]} 17... Rae8 {[%clk 0:02:20.1]} 18. Rc4
{[%clk 0:01:37.2]} 18... Ne5 {[%clk 0:02:02.8]} 19. Nxe5 {[%clk 0:01:33.4]}
19... Qxe5 {[%clk 0:02:02.1]} 20. Re4 {[%clk 0:01:21.3]} 20... Qb2 {[%clk
0:01:54]} 21. Rd2 {[%clk 0:00:58.7]} 21... Qa1+ {[%clk 0:01:53.8]} 22. Rd1
{[%clk 0:00:58.5]} 22... Qf6 {[%clk 0:01:51]} 23. Rf4 {[%clk 0:00:57.4]} 23...
Qg5 {[%clk 0:01:44.8]} 24. h4 {[%clk 0:00:51.5]} 24... Qh6 {[%clk 0:01:44.6]}
25. Qc3+ {[%clk 0:00:49.3]} 25... Kg8 {[%clk 0:01:41.4]} 26. Qf6 {[%clk
0:00:49.2]} 26... Rd7 {[%clk 0:01:28.6]} 27. Bh3 {[%clk 0:00:45.9]} 27... Rdd8
{[%clk 0:01:28.5]} 28. Qxf7+ {[%clk 0:00:45.6]} 28... Kh8 {[%clk 0:01:27.5]} 29.
Qxb7 {[%clk 0:00:35.7]} 29... g5 {[%clk 0:01:24.5]} 30. Rf7 {[%clk 0:00:29.3]}
30... gxh4 {[%clk 0:01:22.3]} 31. Bf5 {[%clk 0:00:29.1]} 1-0

[Event "Betsys MČR v online bleskovém šachu 2021"]
[Site "Chess.com"]
[Date "2021.04.17"]
[Round "12"]
[White "Michal5"]
[Black "Molefancier"]
[Result "0-1"]
[WhiteElo "1191"]
[BlackElo "1081"]
[TimeControl "180+1"]
[EndTime "10:59:49 PDT"]
[Termination "Uživatel Molefancier zvítězil po vzdání soupeře"]

1. e4 {[%clk 0:03:00.9]} 1... c6 {[%clk 0:02:58.5]} 2. d4 {[%clk 0:03:00]} 2...
d5 {[%clk 0:02:58.4]} 3. Nc3 {[%clk 0:02:59.6]} 3... Nf6 {[%clk 0:02:51.4]} 4.
exd5 {[%clk 0:02:58.6]} 4... Nxd5 {[%clk 0:02:50.3]} 5. Nxd5 {[%clk 0:02:57.5]}
5... cxd5 {[%clk 0:02:46.1]} 6. Bf4 {[%clk 0:02:58.4]} 6... Nc6 {[%clk 0:02:43]}
7. Bb5 {[%clk 0:02:56]} 7... a6 {[%clk 0:02:41]} 8. Ba4 {[%clk 0:02:52.9]} 8...
b5 {[%clk 0:02:40.5]} 9. Bb3 {[%clk 0:02:49.2]} 9... e6 {[%clk 0:02:39.9]} 10.
Nf3 {[%clk 0:02:47.4]} 10... Be7 {[%clk 0:02:36.3]} 11. Ne5 {[%clk 0:02:41.7]}
11... Nxe5 {[%clk 0:02:30.2]} 12. Bxe5 {[%clk 0:02:42.6]} 12... O-O {[%clk
0:02:28.6]} 13. O-O {[%clk 0:02:35.7]} 13... f6 {[%clk 0:02:26]} 14. Bf4 {[%clk
0:02:32.7]} 14... Bd6 {[%clk 0:02:23.3]} 15. Bxd6 {[%clk 0:02:30.4]} 15... Qxd6
{[%clk 0:02:23.7]} 16. Re1 {[%clk 0:02:28.4]} 16... Bb7 {[%clk 0:02:16.5]} 17.
c3 {[%clk 0:02:25.4]} 17... Rae8 {[%clk 0:02:15]} 18. Bc2 {[%clk 0:02:22.7]}
18... e5 {[%clk 0:02:13.4]} 19. dxe5 {[%clk 0:02:20.9]} 19... fxe5 {[%clk
0:02:11]} 20. Qg4 {[%clk 0:02:16.7]} 20... Bc8 {[%clk 0:01:58]} 21. Qh4 {[%clk
0:02:15]} 21... Bf5 {[%clk 0:01:44]} 22. Bxf5 {[%clk 0:02:02.8]} 22... Rxf5
{[%clk 0:01:44.2]} 23. Rad1 {[%clk 0:02:01.9]} 23... Ref8 {[%clk 0:01:41.8]} 24.
h3 {[%clk 0:02:00.5]} 24... Rxf2 {[%clk 0:01:38]} 25. Qxf2 {[%clk 0:01:57.6]}
25... Rxf2 {[%clk 0:01:36.3]} 26. Kxf2 {[%clk 0:01:58.5]} 26... Qf6+ {[%clk
0:01:35]} 27. Kg1 {[%clk 0:01:57.8]} 27... Qe6 {[%clk 0:01:25.7]} 28. Rf1 {[%clk
0:01:56.3]} 28... e4 {[%clk 0:01:24.8]} 29. Rde1 {[%clk 0:01:55.1]} 29... Qb6+
{[%clk 0:01:22.9]} 30. Kh2 {[%clk 0:01:51.2]} 30... Qa5 {[%clk 0:01:22.8]} 31.
a3 {[%clk 0:01:48.5]} 31... Qc7+ {[%clk 0:01:20]} 32. Kh1 {[%clk 0:01:42.3]}
32... Qc4 {[%clk 0:01:19.1]} 33. Rf2 {[%clk 0:01:37.7]} 33... Qd3 {[%clk
0:01:15.1]} 34. Ref1 {[%clk 0:01:36.2]} 34... h6 {[%clk 0:01:11.1]} 35. Rf8+
{[%clk 0:01:35.6]} 35... Kh7 {[%clk 0:01:10.8]} 36. R8f2 {[%clk 0:01:35.2]}
36... e3 {[%clk 0:01:09.8]} 37. Rf3 {[%clk 0:01:33.6]} 37... Qd2 {[%clk
0:01:06.9]} 38. Kh2 {[%clk 0:00:41.5]} 38... e2 {[%clk 0:01:06.3]} 39. R1f2
{[%clk 0:00:40.9]} 0-1

[Event "Betsys MČR v online bleskovém šachu 2021"]
[Site "Chess.com"]
[Date "2021.04.17"]
[Round "12"]
[White "tudlenudle"]
[Black "pohoda1966"]
[Result "1-0"]
[WhiteElo "1949"]
[BlackElo "1719"]
[TimeControl "180+1"]
[EndTime "10:59:51 PDT"]
[Termination "Uživatel tudlenudle zvítězil matem"]

1. e4 {[%clk 0:03:00.9]} 1... e5 {[%clk 0:02:59.3]} 2. Nf3 {[%clk 0:02:59.9]}
2... Nc6 {[%clk 0:02:58.5]} 3. d4 {[%clk 0:03:00.3]} 3... exd4 {[%clk
0:02:57.6]} 4. Nxd4 {[%clk 0:03:01.2]} 4... d6 {[%clk 0:02:57.2]} 5. Nc3 {[%clk
0:03:01]} 5... a6 {[%clk 0:02:55]} 6. Bf4 {[%clk 0:03:01.3]} 6... Be7 {[%clk
0:02:53.1]} 7. Qd2 {[%clk 0:03:00.7]} 7... Nf6 {[%clk 0:02:52.4]} 8. O-O-O
{[%clk 0:03:00.1]} 8... O-O {[%clk 0:02:50.5]} 9. h4 {[%clk 0:02:59.6]} 9...
Nxd4 {[%clk 0:02:50]} 10. Qxd4 {[%clk 0:02:59.4]} 10... Be6 {[%clk 0:02:49.7]}
11. Kb1 {[%clk 0:02:56.6]} 11... Nh5 {[%clk 0:02:32.4]} 12. Be3 {[%clk
0:02:52.5]} 12... Bf6 {[%clk 0:02:29.8]} 13. Qd2 {[%clk 0:02:49.6]} 13... g6
{[%clk 0:02:18.1]} 14. Be2 {[%clk 0:02:46.9]} 14... Ng7 {[%clk 0:02:15]} 15. g4
{[%clk 0:02:46.3]} 15... Bxc3 {[%clk 0:02:06.8]} 16. Qxc3 {[%clk 0:02:44.9]}
16... f5 {[%clk 0:02:06]} 17. exf5 {[%clk 0:02:32.8]} 17... gxf5 {[%clk
0:02:05.3]} 18. Bd4 {[%clk 0:02:21.1]} 18... Qe7 {[%clk 0:01:50.5]} 19. g5
{[%clk 0:02:20]} 19... c5 {[%clk 0:01:41.9]} 20. Bf6 {[%clk 0:02:19.8]} 20...
Qf7 {[%clk 0:01:38.8]} 21. Rxd6 {[%clk 0:02:07.9]} 21... Bxa2+ {[%clk
0:01:36.5]} 22. Ka1 {[%clk 0:01:58.2]} 22... Rae8 {[%clk 0:01:28.8]} 23. Bf3
{[%clk 0:01:35.8]} 23... Bc4 {[%clk 0:01:16.7]} 24. Bxg7 {[%clk 0:01:27.4]}
24... Qxg7 {[%clk 0:01:16]} 25. Qxc4+ {[%clk 0:01:27]} 25... Kh8 {[%clk
0:01:16.1]} 26. Rhd1 {[%clk 0:01:18]} 26... Rf7 {[%clk 0:01:09.1]} 27. Rd8
{[%clk 0:01:07.2]} 27... Re7 {[%clk 0:01:06.6]} 28. Bxb7 {[%clk 0:01:01.2]}
28... h5 {[%clk 0:00:52.4]} 29. gxh6 {[%clk 0:00:56]} 29... Qxh6 {[%clk
0:00:51.1]} 30. Qc3+ {[%clk 0:00:51.4]} 30... Kh7 {[%clk 0:00:48.1]} 31. Rxe8
{[%clk 0:00:51.6]} 31... Rxe8 {[%clk 0:00:47.1]} 32. Rd7+ {[%clk 0:00:52.1]}
32... Kg6 {[%clk 0:00:44.8]} 33. Qg3+ {[%clk 0:00:50.5]} 33... Kh5 {[%clk
0:00:41.3]} 34. Bf3# {[%clk 0:00:49.6]} 1-0